Cogmind - Beta 12 @@@ ROGUE MODE // 2023.06.03 @ 21:20:18 Player: Jimzor Result: Destroyed by S-27 Virus with Autogun Performance ------------- Evolutions (5) 2500 Regions Visited (10) 2000 Robots Destroyed (158) 790 Value Destroyed (4179) 4179 Prototype IDs (2) 40 Alien Tech Used (0) 0 Bonus (0) 0 TOTAL SCORE: 9509 Bonus ------- None Cogmind --------- Core Integrity 0/1000 Matter 273/300 Energy 51/100 System Corruption 2% Temperature Cool (0) Movement Flying (35) Location -4/Proximity Caves Parts ------- > --- POWER (2) -------- (None) > --- PROPULSION (3) --- VTOL Module > --- UTILITY (9) ------ (None) > --- WEAPON (3) ------- Power Sword > --- INVENTORY (5) ---- Improved Heat Sink Improved Cooling System Launcher Guidance Computer Particle Charger Makeshift System Shield Peak State ------------ > --- POWER ------------ Fission Core Fusion Compressor > --- PROPULSION ------- Wheel Wheel Armored Wheel > --- UTILITY ---------- Power Amplifier Improved Thermal Generator Improved Heat Sink Advanced Heat Sink High-capacity Storage Unit Improved Sensor Array Advanced ECM Suite Phase Shifter Improved Medium Armor Plating > --- WEAPON ----------- Heavy Laser Plasma Cannon Phase Cannon > --- INVENTORY -------- Improved Deuterium Engine Wheel Wheel Wheel Compact Wheel Compact Wheel Seismic Detector Advanced Beam Rifle Heavy Laser Phase Cannon Coil Gun Grenade Launcher Heavy Hammer [Rating: 65] Favorites ----------- Power Light Nuclear Core Engine Heavy Deuterium Engine Power Core Light Nuclear Core Propulsion Wheel Treads Light Treads Wheel Wheel Hover Unit Hover Unit Flight Unit Xenon Bombardment Thruster Utility Improved Heat Sink Device Improved Heat Sink Storage High-capacity Storage Unit Processor Signal Interpreter Hackware Authchip [Storage] Protection Improved Light Armor Plating Weapon Beam Rifle Energy Gun Beam Rifle Energy Cannon Heavy Particle Cannon Ballistic Gun Assault Rifle Ballistic Cannon Slug Cannon Launcher Long-range Missile Launcher Special Weapon Mining Laser Impact Weapon Heavy Hammer Slashing Weapon Power Sword Piercing Weapon Makeshift Spear Build | -11 -10 -9 -8 -7 -6 -5 -5 -5 -5 -4 ------- Run | Jun Mat Mat Mat Fac Fac Fac Upp Upp War Pro Slots Evolved 10 | . . 2 2 2 2 2 . . . . Power 1 | . . . . . . 1 . . . . Propulsion 1 | . . . 1 . . . . . . . Utility 7 | . . 2 1 1 2 1 . . . . Weapon 1 | . . . . 1 . . . . . . Parts Attached 225 | 15 31 16 17 39 56 14 23 11 . 3 Power 13 | 1 3 1 1 1 1 2 2 1 . . Engine 7 | 1 1 1 1 1 1 . 1 . . . Core 6 | . 2 . . . . 2 1 1 . . Reactor . | . . . . . . . . . . . Propulsion 53 | 7 11 1 6 5 12 1 7 2 . 1 Treads 2 | 1 . . . . . . . 1 . . Leg . | . . . . . . . . . . . Wheel 45 | 6 9 1 6 4 11 1 7 . . . Hover 3 | . 2 . . 1 . . . . . . Flight 3 | . . . . . 1 . . 1 . 1 Utility 92 | 4 9 10 6 17 29 7 4 5 . 1 Device 63 | 3 3 7 3 12 21 6 3 4 . 1 Storage 9 | 1 5 2 1 . . . . . . . Processor 5 | . 1 . . . 2 . 1 1 . . Hackware 1 | . . . . 1 . . . . . . Protection 14 | . . 1 2 4 6 1 . . . . Artifact . | . . . . . . . . . . . Weapon 67 | 3 8 4 4 16 14 4 10 3 . 1 Energy Gun 20 | 2 2 . 3 4 4 2 2 1 . . Energy Cannon 11 | . . 1 . 4 5 1 . . . . Ballistic Gun 11 | 1 5 2 . . . . 3 . . . Ballistic Cannon 4 | . . . . 1 1 . 1 1 . . Launcher 6 | . . . 1 2 1 . 2 . . . Special Weapon 3 | . 1 . . 1 . . 1 . . . Impact Weapon 10 | . . 1 . 4 3 1 1 . . . Slashing Weapon 1 | . . . . . . . . . . 1 Piercing Weapon 1 | . . . . . . . . 1 . . Special Melee Weapon . | . . . . . . . . . . . Unidentified Prototypes 2 | . . . . 1 1 . . . . . Parts Lost 72 | . 7 1 6 2 13 6 21 15 . 1 Power 8 | . 1 1 . . . 1 2 3 . . Propulsion 27 | . 4 . 3 2 7 . 6 4 . 1 Utility 22 | . . . 2 . 6 3 7 4 . . Weapon 15 | . 2 . 1 . . 2 6 4 . . Highest Loss Streak 8 | . 5 1 3 1 7 5 8 8 . 1 To Critical Strikes . | . . . . . . . . . . . Average Slot Usage (%) 90 | . 97 98 98 99 96 99 66 59 5 6 Engine 4 | . 4 2 9 7 6 2 3 2 . . Core 3 | . 9 8 . . . 7 4 3 . . Wheel 19 | . 25 22 26 23 17 17 11 9 . . Device 17 | . 5 10 18 18 25 35 19 21 . . Storage 7 | . 14 11 9 7 6 5 5 3 . . Processor 7 | . 8 11 9 7 7 3 3 7 . . Protection 6 | . . 11 9 11 11 5 . . . . Energy Gun 7 | . 7 . 16 12 8 4 3 . . . Energy Cannon 4 | . . . . 6 10 11 . . . . Ballistic Gun 6 | . 16 21 . . . . 7 4 . . Naked Turns 36 | . . . . . . . . 36 . . Heaviest Build 100 | 13 31 40 62 69 87 99 99 100 . 3 Greatest Support 42 | 32 20 20 30 30 42 32 42 42 6 6 Greatest Overweight (x) 19 | 1 2 1 3 3 8 3 8 19 . . Average Overweight (x) 1 | . . 1 1 2 2 2 3 . . . Largest Inventory Capacity 25 | 8 20 25 20 20 20 20 20 20 5 5 Average Capacity 16 | 7 11 15 18 20 20 20 20 15 5 5 Most Carried 20 | 8 15 16 19 20 20 20 13 10 4 5 Average Carried 13 | 5 10 14 15 19 18 16 8 5 4 4 Final Capacity 20 | 8 15 15 20 20 20 20 20 5 5 5 Final Carried 20 | 8 15 15 19 20 20 13 7 4 4 5 Class Distribution -------------------- 41% | Scavenger-Mutant 27% | Scavenger-Skirmisher 14% | Mutant 10% | Scavenger-Tank 5% | Scavenger-Gunner Dominant Class ---------------- Scavenger-Mutant | -10/Materials Scavenger-Mutant | -9/Materials Scavenger-Mutant | -8/Materials Scavenger-Skirmisher | -7/Factory Scavenger-Skirmisher | -6/Factory Scavenger-Skirmisher | -5/Factory Scavenger-Gunner | -5/Upper Caves Scavenger-Tank | -5/Upper Caves Mutant | -5/Warlord Mutant | -4/Proximity Caves Resources | -11 -10 -9 -8 -7 -6 -5 -5 -5 -5 -4 ----------- Run | Jun Mat Mat Mat Fac Fac Fac Upp Upp War Pro Matter Collected 3495 | 375 719 439 170 356 549 362 251 240 . 34 Remotely . | . . . . . . . . . . . Salvage Created 5538 | 232 938 537 578 711 1333 554 524 101 . 30 Parts 305 | 21 62 31 27 54 59 15 28 6 . 2 Haulers Intercepted 6 | . 2 1 2 1 . . . . . . Recyclers Shooed 15 | . 5 . 1 . 6 3 . . . . Parts Field Recycled . | . . . . . . . . . . . Retrieved Matter . | . . . . . . . . . . . Parts Self-Destructed 31 | . . . . . . . 24 6 . 1 Prevented . | . . . . . . . . . . . Kills | -11 -10 -9 -8 -7 -6 -5 -5 -5 -5 -4 ------- Run | Jun Mat Mat Mat Fac Fac Fac Upp Upp War Pro Combat Hostiles Destroyed 90 | . 14 8 11 14 14 6 18 4 . 1 Melee 1 | . . . . . . . . . . 1 Guns 54 | . 14 8 7 6 5 . 13 1 . . Cannons 18 | . . . . 4 7 4 . 3 . . AOE 10 | . . . 2 2 1 . 5 . . . Classes Destroyed 14 | 3 6 1 . 2 1 . 1 . . . Worker 24 | 2 9 1 2 3 4 3 . . . . Builder 10 | . 2 . 1 3 3 1 . . . . Tunneler 9 | 5 2 . . . 2 . . . . . Hauler 6 | . 2 1 2 1 . . . . . . Recycler 6 | 1 2 . . . 2 1 . . . . Operator 5 | . 1 1 . 1 2 . . . . . Watcher 8 | . 3 2 . 1 2 . . . . . Swarmer 28 | . 3 . 2 6 . . 13 3 . 1 Grunt 41 | . 11 6 7 5 7 1 4 . . . Brawler 1 | . . . . . 1 . . . . . Sentry 6 | . . 2 2 . 1 1 . . . . Hunter 9 | . . . . 1 4 4 . . . . Programmer 4 | . . . . 2 1 . . 1 . . Mutant 1 | . . . . . . . 1 . . . Best Kill Streak 7 | 2 4 3 4 3 4 5 7 2 . 1 Combat Bots Only 7 | . 3 3 2 3 3 3 7 2 . 1 Max Kills in Single Turn 3 | 1 2 1 2 2 1 2 3 1 . 1 Gunslinging 1 | . . . . . . . 1 . . . Exploded 3 | . . . 2 2 1 . 3 . . . Melee 1 | . . . . . . . . . . 1 Uniques/NPCs Destroyed . | . . . . . . . . . . . Combat | -11 -10 -9 -8 -7 -6 -5 -5 -5 -5 -4 -------- Run | Jun Mat Mat Mat Fac Fac Fac Upp Upp War Pro Damage Taken 7984 | 21 686 344 761 628 1970 590 1628 984 . 372 Core 1756 | 21 135 50 160 59 319 88 300 282 . 342 Absorbed by Shields . | . . . . . . . . . . . Redirected to Shielding 317 | . . . . 68 189 60 . . . . Core Remaining (%) 73 | 91 37 87 70 91 62 . . . . . Volleys Fired 431 | 18 119 34 64 37 80 24 35 20 . . Largest 3 | 2 2 2 2 3 3 3 3 3 . . Hottest 239 | 70 120 46 112 201 234 239 223 139 . . Shots Fired 940 | 36 213 68 124 97 223 72 80 27 . . Gun 676 | 36 205 68 123 59 91 24 63 7 . . Cannon 243 | . . . . 37 130 48 8 20 . . Launcher 13 | . . . 1 1 2 . 9 . . . Special 8 | . 8 . . . . . . . . . Kinetic 254 | 18 115 68 . . . . 28 25 . . Thermal 670 | 15 98 . 123 96 221 72 43 2 . . Explosive 13 | . . . 1 1 2 . 9 . . . Electromagnetic 3 | 3 . . . . . . . . . . Robot Hit Streak 20 | 6 8 11 14 13 20 9 8 3 . . Robot Miss Streak 8 | 3 3 3 4 4 5 4 5 8 . . Penetration Max . | . . . . . . . . . . . Secondary Targets 3 | . . . . . . . 3 . . . Max Gunslinging Chain 1 | . . . . . . . 1 . . . Shots Hit Robots 568 | 18 122 45 92 60 130 49 41 9 . 2 Core Hits 250 | 9 50 18 32 33 56 17 29 5 . 1 Critical Kills 2 | . . . . 1 . 1 . . . . Critical Parts Destroyed 2 | . . . . . . . 1 1 . . Critical Strikes 33 | 2 10 . 6 5 3 3 3 1 . . Burn 28 | 1 10 . 6 4 3 2 2 . . . Meltdown 2 | . . . . 1 . 1 . . . . Destroy 2 | . . . . . . . 1 1 . . Corrupt 1 | 1 . . . . . . . . . . Melee Attacks 22 | . . . . 4 7 4 3 . . 4 Impact 18 | . . . . 4 7 4 3 . . . Slashing 4 | . . . . . . . . . . 4 Piercing . | . . . . . . . . . . . Sneak Attacks . | . . . . . . . . . . . Combat Hostiles . | . . . . . . . . . . . Follow-up Attacks . | . . . . . . . . . . . Damage Inflicted 11876 | 260 1666 691 1506 1294 3378 1334 1414 259 . 74 Guns 6769 | 230 1570 691 1350 661 1153 337 710 67 . . Cannons 3788 | . . . . 506 1975 997 118 192 . . Explosions 1149 | 30 . . 156 127 250 . 586 . . . Melee 74 | . . . . . . . . . . 74 Ramming . | . . . . . . . . . . . Kinetic 2073 | 100 803 691 . . . . 240 239 . . Thermal 8582 | 132 863 . 1350 1167 3128 1334 588 20 . . Explosive 1119 | . . . 156 127 250 . 586 . . . Electromagnetic 28 | 28 . . . . . . . . . . Impact . | . . . . . . . . . . . Slashing 74 | . . . . . . . . . . 74 Piercing . | . . . . . . . . . . . Highest Corruption 3 | . . . . 2 3 1 2 2 2 2 Average Corruption 1 | . . . . 1 2 1 1 2 2 2 Corruption Purged 3 | . . . . . 3 . . . . . Corruption Blocked . | . . . . . . . . . . . Effects 24 | . . . . 3 4 3 7 5 1 1 Message Errors 4 | . . . . 2 . . 1 1 . . Matter Fused 2 | . . . . . . . . 2 . . Heat Flow Errors 1 | . . . . . . . 1 . . . Energy Discharges 6 | . . . . . 1 2 2 . . 1 Parts Rejected 1 | . . . . . . . 1 . . . Data Loss (minor) 6 | . . . . 1 . 1 1 2 1 . Misfires 1 | . . . . . . . 1 . . . Alerts 1 | . . . . . 1 . . . . . Weapon Failures 2 | . . . . . 2 . . . . . Overload Shots . | . . . . . . . . . . . Overflow Damage 200 | . 46 . . . 103 43 8 . . . Projectiles 192 | . 46 . . . 103 43 . . . . Explosions 8 | . . . . . . . 8 . . . Melee . | . . . . . . . . . . . Knockbacks 2 | . . . . . . . . 2 . . Impact . | . . . . . . . . . . . Kinetic 2 | . . . . . . . . 2 . . Secondary . | . . . . . . . . . . . Self-Inflicted Damage 152 | 21 . . . . 14 . 117 . . . Shots 5 | 1 . . . . 1 . 3 . . . Rammed . | . . . . . . . . . . . Targets Rammed . | . . . . . . . . . . . Kicked . | . . . . . . . . . . . Crushed . | . . . . . . . . . . . Highest Temperature 548 | 36 534 45 66 365 548 451 121 150 . . Average Temperature 93 | 12 113 13 21 126 123 111 34 78 . . Received Heat Transfer 1965 | . 336 159 396 99 279 81 336 234 . 45 Effects 20 | . 15 . . 1 3 1 . . . . Shutdowns 3 | . 2 . . . . 1 . . . . Energy Bleed 5 | . 3 . . . 2 . . . . . Interference 7 | . 5 . . 1 1 . . . . . Matter Decay 2 | . 2 . . . . . . . . . Damage (major) 2 | . 2 . . . . . . . . . Damage (core) 1 | . 1 . . . . . . . . . Siege Activations . | . . . . . . . . . . . Robots Corrupted . | . . . . . . . . . . . Combat Hostiles . | . . . . . . . . . . . Parts Fried . | . . . . . . . . . . . Impact Corruptions . | . . . . . . . . . . . Robots Melted 7 | . . . 2 2 1 2 . . . . Combat Hostiles 7 | . . . 2 2 1 2 . . . . Parts Melted 68 | 1 10 . 14 10 17 14 2 . . . Heat Transferred 18991 | 420 3086 . 3885 2516 5572 2291 1184 37 . . Parts Sabotaged . | . . . . . . . . . . . Parts Stolen . | . . . . . . . . . . . Parts Stripped . | . . . . . . . . . . . Power Chain Reactions 1 | 1 . . . . . . . . . . Missiles Intercepted . | . . . . . . . . . . . Alert | -11 -10 -9 -8 -7 -6 -5 -5 -5 -5 -4 ------- Run | Jun Mat Mat Mat Fac Fac Fac Upp Upp War Pro Peak Influence 261 | 40 206 257 254 261 225 230 . . . . Initial 91 | . 26 76 42 83 91 51 . . . . Average 113 | 18 107 110 118 147 107 108 . . . . Maximum Alert Level 1 | . 1 1 1 1 1 1 . . . . Low Security (%) 92 | 100 97 91 85 92 92 86 . . . . Level 1 7 | . 2 8 14 7 7 13 . . . . Level 2 . | . . . . . . . . . . . Level 3 . | . . . . . . . . . . . Level 4 . | . . . . . . . . . . . Level 5 . | . . . . . . . . . . . High Security . | . . . . . . . . . . . Max Security . | . . . . . . . . . . . Squads Dispatched 22 | . 6 3 2 5 4 2 . . . . Investigation 10 | . 5 2 . 1 1 1 . . . . Extermination 3 | . . . . 2 1 . . . . . Reinforcement 9 | . 1 1 2 2 2 1 . . . . Assault . | . . . . . . . . . . . Garrison . | . . . . . . . . . . . Intercept . | . . . . . . . . . . . Searches Triggered . | . . . . . . . . . . . Construction Impeded 3 | . . . 1 . 1 1 . . . . Haulers Reinforced . | . . . . . . . . . . . Active Scanning Responses . | . . . . . . . . . . . Cargo Convoy Interrupts . | . . . . . . . . . . . Stealth | -11 -10 -9 -8 -7 -6 -5 -5 -5 -5 -4 --------- Run | Jun Mat Mat Mat Fac Fac Fac Upp Upp War Pro Distress Signals 2 | . . . 1 . 1 . . . . . Communications Jammed 2 | . . . . . 2 . . . . . Distress Signals 2 | . . . . . 2 . . . . . Times Spotted 144 | . 26 12 18 17 26 6 20 13 . 6 Peak Tracking Total 8 | . 5 3 3 4 6 3 6 8 . 6 Tactical Retreats 13 | . 2 1 2 1 1 . 1 5 . . Traps | -11 -10 -9 -8 -7 -6 -5 -5 -5 -5 -4 ------- Run | Jun Mat Mat Mat Fac Fac Fac Upp Upp War Pro Traps Triggered 3 | . 1 . . 1 1 . . . . . Indirectly . | . . . . . . . . . . . Trap Hack Attempts . | . . . . . . . . . . . Triggered . | . . . . . . . . . . . Disarmed . | . . . . . . . . . . . Reprogrammed . | . . . . . . . . . . . Reused . | . . . . . . . . . . . Traps Extracted . | . . . . . . . . . . . Installed . | . . . . . . . . . . . Triggered 2 | . . . . . . . . . . 2 Machines | -11 -10 -9 -8 -7 -6 -5 -5 -5 -5 -4 ---------- Run | Jun Mat Mat Mat Fac Fac Fac Upp Upp War Pro Machines Disabled 4 | . 1 . 1 . 2 . . . . . Max in Single Turn 1 | . 1 . 1 . 1 . . . . . Machines Repaired . | . . . . . . . . . . . Machines Sabotaged . | . . . . . . . . . . . Overloaded Fab Kills . | . . . . . . . . . . . Hacking | -11 -10 -9 -8 -7 -6 -5 -5 -5 -5 -4 --------- Run | Jun Mat Mat Mat Fac Fac Fac Upp Upp War Pro Machines Accessed 17 | . 6 3 2 3 2 1 . . . . Terminals 16 | . 6 3 2 2 2 1 . . . . Fabricators . | . . . . . . . . . . . Repair Stations . | . . . . . . . . . . . Recycling Units . | . . . . . . . . . . . Scanalyzers 1 | . . . . 1 . . . . . . Garrison Access . | . . . . . . . . . . . Total Hacks 51 | . 18 9 11 7 4 2 . . . . Successful 28 | . 8 6 8 3 3 . . . . . Failed 22 | . 9 3 3 4 1 2 . . . . Catastrophic 6 | . 2 1 1 1 1 . . . . . Database Lockouts 1 | . 1 . . . . . . . . . Manual . | . . . . . . . . . . . Terminals 47 | . 18 9 11 3 4 2 . . . . Fabricators . | . . . . . . . . . . . Repair Stations . | . . . . . . . . . . . Recycling Units . | . . . . . . . . . . . Scanalyzers 4 | . . . . 4 . . . . . . Garrison Access . | . . . . . . . . . . . Terminal Hacks 26 | . 8 6 8 1 3 . . . . . Record 10 | . 3 2 5 . . . . . . . Open DSF 1 | . . . . . 1 . . . . . Branch Access Points 1 | . . 1 . . . . . . . . Emergency Access Points 1 | . 1 . . . . . . . . . Alert Level 2 | . . 1 . . 1 . . . . . Unreport Threat 3 | . 1 1 . . 1 . . . . . Locate Traps 3 | . 1 . 1 1 . . . . . . Recall Reinforcements 1 | . . 1 . . . . . . . . Hauler Manifests 2 | . 1 . 1 . . . . . . . Zone Layout 2 | . 1 . 1 . . . . . . . Fabricator Hacks . | . . . . . . . . . . . Repair Station Hacks . | . . . . . . . . . . . Recycling Unit Hacks . | . . . . . . . . . . . Scanalyzer 2 | . . . . 2 . . . . . . Insert Component 1 | . . . . 1 . . . . . . Analyze 1 | . . . . 1 . . . . . . Garrison Access Hacks . | . . . . . . . . . . . Unauthorized Hacks . | . . . . . . . . . . . Terminals . | . . . . . . . . . . . Fabricators . | . . . . . . . . . . . Repair Stations . | . . . . . . . . . . . Recycling Units . | . . . . . . . . . . . Scanalyzers . | . . . . . . . . . . . Garrison Access . | . . . . . . . . . . . Data Cores Recovered . | . . . . . . . . . . . Used . | . . . . . . . . . . . Hacking Detections 16 | . 6 3 2 3 1 1 . . . . Full Trace Events 10 | . 5 2 . 1 1 1 . . . . Feedback Events 2 | . . . . . 1 1 . . . . Corruption 2 | . . . . . 1 1 . . . . Feedback Blocked . | . . . . . . . . . . . Robot Schematics Acquired . | . . . . . . . . . . . Robots Built . | . . . . . . . . . . . Authchips . | . . . . . . . . . . . Time . | . . . . . . . . . . . Total Robot Build Rating . | . . . . . . . . . . . Part Schematics Acquired 1 | . . . . 1 . . . . . . Parts Built . | . . . . . . . . . . . Authchips . | . . . . . . . . . . . Time . | . . . . . . . . . . . Total Part Build Rating . | . . . . . . . . . . . Parts Repaired . | . . . . . . . . . . . Time . | . . . . . . . . . . . Parts Recycled . | . . . . . . . . . . . Recycled Matter . | . . . . . . . . . . . Retrieved Matter . | . . . . . . . . . . . Retrieved Components . | . . . . . . . . . . . Parts Scanalyzed 1 | . . . . 1 . . . . . . Part Schematics Acquired 1 | . . . . 1 . . . . . . Parts Damaged . | . . . . . . . . . . . Bothacking | -11 -10 -9 -8 -7 -6 -5 -5 -5 -5 -4 ------------ Run | Jun Mat Mat Mat Fac Fac Fac Upp Upp War Pro Used RIF Installer . | . . . . . . . . . . . Robots Hacked . | . . . . . . . . . . . Non-combat . | . . . . . . . . . . . Combat . | . . . . . . . . . . . Robot Hacks Applied . | . . . . . . . . . . . Relay Couplers Released . | . . . . . . . . . . . Fabnet Peak Effective % . | . . . . . . . . . . . Robots Rewired . | . . . . . . . . . . . Allies Hacked . | . . . . . . . . . . . Hacks Repelled . | . . . . . . . . . . . Allies | -11 -10 -9 -8 -7 -6 -5 -5 -5 -5 -4 -------- Run | Jun Mat Mat Mat Fac Fac Fac Upp Upp War Pro Total Allies . | . . . . . . . . . . . Largest Group . | . . . . . . . . . . . Highest-Rated Group . | . . . . . . . . . . . Highest-Rated Ally . | . . . . . . . . . . . Total Orders . | . . . . . . . . . . . Ally Attacks . | . . . . . . . . . . . Total Damage . | . . . . . . . . . . . Kills . | . . . . . . . . . . . Allies Corrupted . | . . . . . . . . . . . Allies Melted . | . . . . . . . . . . . Intel | -11 -10 -9 -8 -7 -6 -5 -5 -5 -5 -4 ------- Run | Jun Mat Mat Mat Fac Fac Fac Upp Upp War Pro Robot Analysis Total . | . . . . . . . . . . . Derelict Logs Recovered 2 | . . . . . . . . 2 . . Drone Launches . | . . . . . . . . . . . Drone Recoveries . | . . . . . . . . . . . Exploration | -11 -10 -9 -8 -7 -6 -5 -5 -5 -5 -4 ------------- Run | Jun Mat Mat Mat Fac Fac Fac Upp Upp War Pro Turns Passed 5903 | 191 1111 467 546 1000 1117 378 619 381 27 66 Spaces Moved 3567 | 107 688 258 225 679 527 194 334 392 68 95 Core 82 | 10 . . . . . . . 71 . 1 Treads . | . . . . . . . . . . . Legs . | . . . . . . . . . . . Wheels 3149 | 97 688 258 225 679 527 194 334 147 . . Hover . | . . . . . . . . . . . Flight 336 | . . . . . . . . 174 68 94 Fastest Speed 40 | 50 80 95 95 110 108 110 98 40 40 40 Average Speed 101 | 89 90 95 98 110 115 120 138 78 40 40 Slowest Speed 1000 | 100 110 95 125 125 200 128 200 1000 40 50 Overloaded Moves . | . . . . . . . . . . . Propulsion Burnouts . | . . . . . . . . . . . Robots Hopped . | . . . . . . . . . . . Cave-ins Triggered . | . . . . . . . . . . . Exploration Rate (%) 27 | 6 91 19 20 17 12 5 44 64 12 17 Regions Visited 10 Branch Regions 4 Pre-discovered Areas 1 | . . . . . . . . 1 . . Known Exits Taken 6 | . 1 1 1 1 1 . 1 . . . Unknown Exits Taken 4 | 1 . . . . . 1 . 1 1 . Scrap Searched 7 | . . . . . . . 3 3 . 1 Spaces Dug 13 | . . . . 3 5 3 2 . . . Terrain Destroyed 199 | 1 1 . 7 3 34 11 131 11 . . Melee 13 | . . . . 3 5 3 2 . . . Projectile 59 | . 1 . . . 26 8 13 11 . . AOE 127 | 1 . . 7 . 3 . 116 . . . Terrain Rammed . | . . . . . . . . . . . Walls Destroyed . | . . . . . . . . . . . Machines Disabled . | . . . . . . . . . . . Actions | -11 -10 -9 -8 -7 -6 -5 -5 -5 -5 -4 --------- Run | Jun Mat Mat Mat Fac Fac Fac Upp Upp War Pro Total 4973 | 167 955 428 422 846 848 275 409 439 67 117 Wait 457 | . 57 86 99 32 125 35 . 10 . 13 Move 3557 | 106 687 257 224 678 526 193 333 391 67 95 Hop . | . . . . . . . . . . . Pick Up 157 | 19 33 20 13 21 27 3 13 7 . 1 Fast Attach 34 | 2 3 7 2 9 9 . . . . 2 Attach 93 | 6 8 6 7 12 17 9 17 10 . 1 Detach 5 | 1 . 1 . 1 1 . . . . 1 Swap 98 | 7 20 3 8 18 30 5 6 1 . . Drop 111 | 8 28 14 5 26 26 2 2 . . . Fire 431 | 18 119 34 64 37 80 24 35 20 . . Melee 22 | . . . . 4 7 4 3 . . 4 Ram . | . . . . . . . . . . . Kick . | . . . . . . . . . . . Crush . | . . . . . . . . . . . Escape Stasis 8 | . . . . 8 . . . . . . Rewire . | . . . . . . . . . . . Trap . | . . . . . . . . . . . Miscellaneous . | . . . . . . . . . . . Route ------- -11/Junkyard -10/Materials (discovered 5 exits: *Mat x3 / [*Min x2]) -9/Materials (discovered 3 exits: *Mat / Min / Sto) -8/Materials -7/Factory -6/Factory -5/Factory -5/Upper Caves -5/Upper Caves -5/Warlord -4/Proximity Caves History --------- Turn | Location | Event 22 | -11/Junkyard | Discovered new exit (range 15) 192 | -11/Junkyard | Entered Materials 300 | -10/Materials | Build established: Mutant 362 | -10/Materials | Central database locked down 443 | -10/Materials | Discovered new exit (range 9) 530 | -10/Materials | Discovered new exit (range 10) 722 | -10/Materials | Core integrity fell below 50% 752 | -10/Materials | Lost 5 parts (1p2n2w) 1064 | -10/Materials | Discovered new exit (range 11) 1072 | -10/Materials | Build established: Scavenger-Mutant 1135 | -10/Materials | Discovered new exit (range 12) 1234 | -10/Materials | Discovered new exit (range 16) 1302 | -10/Materials | Identified exit to Materials 1303 | -10/Materials | Entered another Materials area 1303 | -9/Materials | Evolved 2 slots: Utility x2 1594 | -9/Materials | Identified exit to Mines 1594 | -9/Materials | Identified exit to Storage 1689 | -9/Materials | Discovered new exit (range 16) 1703 | -9/Materials | Identified exit to Materials 1770 | -9/Materials | Entered another Materials area 1770 | -8/Materials | Evolved 2 slots: Propulsion x1, Utility x1 2059 | -8/Materials | Discovered new exit (range 6) 2174 | -8/Materials | Lost 3 parts (2n1u) 2304 | -8/Materials | Identified exit to Factory 2316 | -8/Materials | Entered Factory 2316 | -7/Factory | Evolved 2 slots: Utility x1, Weapon x1 3083 | -7/Factory | Build established: Scavenger-Skirmisher 3288 | -7/Factory | Discovered new exit (range 6) 3294 | -7/Factory | Identified exit to Factory 3316 | -7/Factory | Entered another Factory area 3316 | -6/Factory | Evolved 2 slots: Utility x2 3439 | -6/Factory | Identified exit to DSF 3956 | -6/Factory | Lost 7 parts (5n2u) 4366 | -6/Factory | Spotted B-75 Beast 4412 | -6/Factory | Discovered new exit (range 15) 4432 | -6/Factory | Identified exit to Factory 4433 | -6/Factory | Entered another Factory area 4433 | -5/Factory | Evolved 2 slots: Power x1, Utility x1 4660 | -5/Factory | Discovered new exit (range 15) 4789 | -5/Factory | Lost 5 parts (3u2w) 4811 | -5/Factory | Entered Upper Caves 4849 | -5/Upper Caves | Attracted the attention of an 0b10 base 4911 | -5/Upper Caves | Lost 8 parts (1p2n2u3w) 4915 | -5/Upper Caves | Destroyed 7 combat bots 4958 | -5/Upper Caves | Lost 4 parts (1p1n1u1w) 5072 | -5/Upper Caves | Attacked by a delusional Derelict stockpiling parts 5182 | -5/Upper Caves | Lost 3 parts (2n1u) 5365 | -5/Upper Caves | Spotted B-75 Beast 5405 | -5/Upper Caves | Build established: Scavenger-Gunner 5417 | -5/Upper Caves | Discovered new exit (range 12) 5429 | -5/Upper Caves | Identified exit to Upper Caves 5430 | -5/Upper Caves | Entered another Upper Caves area 5431 | -5/Upper Caves | Encountered a Warlord checkpoint 5438 | -5/Upper Caves | Learned Factory stockpile data 5657 | -5/Upper Caves | Lost 8 parts (2p2n1u3w) 5681 | -5/Upper Caves | Attracted the attention of an 0b10 base 5681 | -5/Upper Caves | Core integrity fell below 50% 5704 | -5/Upper Caves | Released all parts (6) 5734 | -5/Upper Caves | Lost 7 parts (1p2n3u1w) 5781 | -5/Upper Caves | Discovered new exit (range 12) 5811 | -5/Upper Caves | Entered Warlord 5835 | -5/Warlord | Discovered new exit (range 8) 5838 | -5/Warlord | Entered Proximity Caves 5855 | -4/Proximity Caves | Attracted the attention of an 0b10 checkpoint 5890 | -4/Proximity Caves | Core integrity fell below 20% 5904 | -4/Proximity Caves | Destroyed by S-27 Virus with Autogun Last Messages --------------- 05827_ System corrupted: Component data lost. 05835_ EXIT=FOUND LOCATION=UNKNOWN GOAL=ESCAPE 05855_ Y-64 Sentinel: "INTERCEPTING UNREGISTERED DERELICT." 05856_ Penetrated by Slug. 05872_ Searching scrap... 05872_ Found Power Sword. 05872_ Found Particle Charger. 05872_ Found 34 Matter. 05873_ Acquired 34 matter. 05873_ Acquired Power Sword. 05874_ Critical hit (Burn: +37). 05875_ Acquired Particle Charger. 05898_ Xenon Bombardment Thruster destroyed. 05901_ S-27 Virus destroyed. 05904_ System corrupted: Energy discharge (-29). 05904_ Acquired VTOL Module. [Achievement: Just Browsing] Map ----- +----------------------------------------------------+ | ?????????????????????????????????????????????????? | | ?????????????????????????????????????????????????? | | ?????????????????????????????????????????????????? | | ?????????????????????????????????????????????????? | | ???????##????????????????????????????????????????? | | ??##### ##???????????????????????????????????????? | | ?## #???????????????????????????????????????? | | ## #???????????????????????????????????????? | | # #???????????????????????????????????????? | | #???????????????????????????????????????? | | #????????????????????????????????????????? | | #####????????????????????????????????????? | | ###??????????????????????????????????? | | ##?????????????????????????????????? | | #?????????????????????????????????? | | ### #??????????????????????????????????? | | #### #??##?##????????????????????????????? | | #?## #?# ##??????????????????????????? | | #?# #?# ###????????????????????????? | | ## ##### #?# #?# ##??????????????? ??????? | | ?#####???# ### #??# #????????????? ??????? | | ?????????# ## #???# ##?????????? ?????? | | ?????????# # #??## ##??????? ?????? | | ?????????# # #### #????? ????? | | ?????????# *#### ????? | | ?????????# @% #???????????? | | ?????????##### s ss ######???????????? | | ?????????????# s ##????????????????? | | ?????????????# ### ###?????????????????? | | ????????????# ###?## ##???????????????????? | | ????????????# ##????###????????????????????? | | ????????????# #####????????????????????????????? | | ????????????# ##????????????????????????????????? | | ????????????# #??????????????????????????????????? | | ????????????##???????????????????????????????????? | | ?????????????????????????????????????????????????? | | ?????????????????????????????????????????????????? | | ?????????????????????????????????????????????????? | | ?????????????????????????????????????????????????? | | ?????????????????????????????????????????????????? | | ?????????????????????????????????????????????????? | | ?????????????????????????????????????????????????? | | ?????????????????????????????????????????????????? | | ?????????????????????????????????????????????????? | | ?????????????????????????????????????????????????? | | ?????????????????????????????????????????????????? | | ?????????????????????????????????????????????????? | | ?????????????????????????????????????????????????? | | ?????????????????????????????????????????????????? | | ?????????????????????????????????????????????????? | +----------------------------------------------------+ Best States ------------- Heat Dissipation 73 Energy Generation 44 Energy Capacity 505 Matter Stores 300 Matter Capacity 300 Sight Range 16 Robot Scan Range 15 Terrain Scan Density 10 ECM Strength 2 Jamming Range 14 Power Amplification 40 Armor Coverage 375 Resistance: KI 20 Resistance: EM 25 Propulsion Shielding 66 Utility Shielding 66 Weapon Shielding 66 Phase Shifting 5 Evasion (%) 62 Core Analysis 6 Recoil Reduction 1 Matter Filtering 30 Salvage Targeting 1 Authchip Count 1 Item Schematics ----------------- Lrg. Storage Unit | -7/Factory | Scanalyzed Robot Schematics ------------------ None Fabricated ------------ Nothing Alien Tech Used ----------------- None Achievements -------------- I Spy Just Browsing Challenges ------------ None Game ------ Seed HardlightSpectralFirepult Manual? 0 Play Time 02:12:56 Cumulative 16.6 hours Start 2023.06.02 @ 10:52:08 End 2023.06.03 @ 21:20:18 Sessions 3 Manual Loads 0 Difficulty Rogue Special Mode None Game No. 9 Rogue 9 Adventurer 0 Explorer 0 Win Type - Total 0 Types 0/0/0/0/0/0/0/0/0 Lore% 4 Gallery% 27 Achievement% 16 Wizard Run 0 Options --------- ASCII 0 Keyboard 0 Movement Mouse Keybinds 0 Fullscreen 1 Font 16/SmallcapsGlow Map View 50x54 Tactical HUD 1 Map Filters NONE Filters NONE Steam 1 RUN: fa5e64dc-0936-49b3-b59d-88955133e450